[Event "Kvika Banki League Iceland 2022-23"]
[Site "Reykjavik"]
[Date "2022.10.14"]
[Round "2.11"]
[White "Hjartarson, Johann"]
[Black "Sulypa, Oleksandr"]
[Result "1/2-1/2"]
[ECO "A06"]
[WhiteElo "2468"]
[BlackElo "2463"]
[Annotator "TA"]
[PlyCount "70"]
[EventDate "2022.10.13"]
[EventType "team-tourn"]
[EventCountry "ISL"]
[SourceTitle "playchess.com"]
[Source "ChessBase"]
[SourceQuality "1"]
[TimeControl "5400+30"]

{[%evp 12,70,22,24,41,37,44,50,53,56,58,56,58,0,0,0,0,0,58,-14,0,0,0,0,35,-28,-25,-42,-16,-41,-39,-52,-43,-62,-45,-77,-25,-95,-21,-100,-91,-86,-24,-52,-40,-80,-80,-72,-62,-64,-71,-70,-71,-68,0,0,0,-19,-24,-20,-16]} 1. d4 {[%emt 0:00:14]} d5 {[%emt 0:00:03]} 2. c4 {[%emt 0:00:08]} c6 {[%emt 0:00:03]} 3. Nf3 {[%emt 0:00:20]} Nf6 {[%emt 0:00:05]} 4. e3 {[%emt 0:00:13]} e6 {[%emt 0:00:07]} 5. b3 {[%emt 0:00:19]} Nbd7 {[%emt 0:00:23]} 6. Bb2 {[%emt 0:00:32]} Bd6 {[%emt 0:03:26]} 7. Bd3 {[%emt 0:02:34]} Qe7 {[%emt 0:02:12] 7...b6 is setting a new trend. A06: Réti Opening: 1 Nf3 d5.} 8. Ne5 {[%emt 0:07:05]} Bb4+ {[%emt 0:22:26]} 9. Nd2 {[%emt 0:01:34]} Ne4 {[%emt 0:04:54] White is slightly better.} 10. Bxe4 {[%emt 0:00:23]} dxe4 {[%emt 0:00:04]} 11. O-O {[%emt 0:00:37]} f5 {[%emt 0:01:04] [#]} 12. Qh5+ $146 {[%emt 0:03:27]} (12. a3 $14 Bxd2 13. Nxd7 (13. Qxd2 Nxe5 14. dxe5 b6 $14)) ({Predecessor:} 12. a3 Bxd2 13. Qxd2 O-O 14. Nxd7 Bxd7 15. a4 Rfd8 16. Ba3 Qf6 17. Bd6 Be8 18. c5 {1-0 (65) Garza Marco,S (2400)-Vega Gutierrez,S (2374) Marbella 2019}) 12... g6 $11 {[%emt 0:03:22]} 13. Qe2 {[%emt 0:00:22]} ({Don't play} 13. Nxg6 Qf7 14. Nf4 (14. d5 e5 $17) 14... Bxd2 $17) 13... Nxe5 {[%emt 0:05:24]} 14. dxe5 {[%emt 0:01:01]} b6 {[%emt 0:16:26] [#]} (14... Bc5 $11) 15. Rad1 {[%emt 0:01:20]} (15. Nxe4 $1 $14 fxe4 16. a3) 15... O-O {[%emt 0:04:06]} 16. f3 {[%emt 0:07:24]} exf3 {[%emt 0:01:37]} 17. Nxf3 {[%emt 0:00:21]} Bb7 {[%emt 0:00:03]} 18. Nd4 {[%emt 0:02:01]} (18. a3 $1 $14 Bxa3 19. Bxa3 Qxa3 20. Rd7) 18... Bc5 {[%emt 0:00:10]} 19. Nc2 {[%emt 0:05:25]} a5 {[%emt 0:01:04][%cal Ba7a5,Ba5a4][%mdl 32]} 20. a3 {[%emt 0:07:19]} b5 {[%emt 0:04:13]} 21. Kh1 {[%emt 0:17:21]} bxc4 {[%emt 0:01:40]} 22. bxc4 {[%emt 0:00:28]} a4 {[%emt 0:01:42]} 23. Rb1 {[%emt 0:13:31]} Qc7 {[%emt 0:10:50]} ({Better is} 23... Rad8 $17) 24. Rfd1 {[%emt 0:00:00]} (24. e4 $11 {keeps the balance.}) 24... Rfe8 {[%emt 0:01:11]} (24... Be7 $17 {Hoping for ...c5.} 25. Nd4 Qc8) 25. Bc3 {[%emt 0:00:00]} (25. e4 $1 $11 {remains equal.}) 25... Bf8 $17 {[%emt 0:02:27] A strong pair of Bishops.} 26. e4 {[%emt 0:00:59]} Bg7 {[%emt 0:01:06]} (26... c5 $17 27. exf5 gxf5) 27. c5 {[%emt 0:08:54]} Ba6 {[%emt 0:00:45]} 28. Qf3 {[%emt 0:00:51]} Bxe5 {[%emt 0:02:18]} 29. Bxe5 {[%emt 0:00:59]} Qxe5 {[%emt 0:00:05]} 30. exf5 {[%emt 0:00:45]} Qxf5 {[%emt 0:02:56]} 31. Qc3 {[%emt 0:02:56]} Rad8 $1 {[%emt 0:00:40]} 32. Ne3 {[%emt 0:08:40]} Qe4 {[%emt 0:01:01]} ({Black should try} 32... Rd3 $1 $15 33. Qxd3 Qxd3 34. Rxd3 Bxd3) 33. h3 $11 {[%emt 0:01:15] [#] Strongly threatening Ng4.} Be2 {[%emt 0:00:40] Prevents Ng4.} 34. Rb4 {[%emt 0:00:45] Rxd8 is the strong threat.} Rxd1+ {[%emt 0:00:45]} 35. Nxd1 {[%emt 0:00:05]} Qd3 {[%emt 0:02:55] Weighted Error Value: White=0.24 (precise) /Black=0.21 (precise)} 1/2-1/2

[Event "Kvika Banki League Iceland 2022-23"]
[Site "Reykjavik"]
[Date "2022.10.14"]
[Round "2.12"]
[White "Petursson, Margeir"]
[Black "Thorfinnsson, Bragi"]
[Result "1/2-1/2"]
[ECO "A25"]
[WhiteElo "2447"]
[BlackElo "2421"]
[Annotator "TA"]
[PlyCount "128"]
[EventDate "2022.10.13"]
[EventType "team-tourn"]
[EventCountry "ISL"]
[SourceTitle "playchess.com"]
[Source "ChessBase"]
[SourceQuality "1"]
[TimeControl "5400+30"]

{[%evp 10,128,18,12,18,-4,-11,-12,0,0,-2,-2,-14,0,-14,-25,-17,-17,-12,-22,-19,-21,0,0,0,-11,-11,-10,0,-11,0,0,0,-78,-83,-72,-71,-85,-73,-108,-66,-68,-68,-81,-81,-81,-81,-81,-81,-100,-96,-89,-81,-135,-140,-140,-135,-543,-382,-591,-579,-591,-591,-588,-584,-577,-575,-567,-504,-569,-559,-543,-485,-1535,-80,-80,-80,-80,-80,-80,-80,-80,-80,-80,-80,-80,-37,-45,-37,-45,-45,-45,0,0,0,0,0,0,0,0,0,0,0,0,0,0,0,0,0,0,0,0,0,0,0,0,0,0,0,0,0]} 1. c4 {[%emt 0:00:07]} e5 {[%emt 0:00:09]} 2. g3 {[%emt 0:00:26]} Nf6 {[%emt 0:00:23]} 3. Bg2 {[%emt 0:00:07]} Bc5 {[%emt 0:00:28]} 4. Nc3 {[%emt 0:00:41]} O-O {[%emt 0:00:26]} 5. e3 {[%emt 0:00:43]} Nc6 {[%emt 0:00:55]} 6. Nge2 {[%emt 0:00:37]} d5 {[%emt 0:00:13] A25: English Opening vs King's Indian with ...Nc6 but without early d3.} 7. d4 {[%emt 0:12:40]} exd4 {[%emt 0:03:08]} 8. exd4 {[%emt 0:00:08]} Bb4 {[%emt 0:01:06]} 9. cxd5 {[%emt 0:08:09]} Nxd5 {[%emt 0:01:14]} 10. O-O {[%emt 0:04:58]} Be6 {[%emt 0:01:43]} 11. Ne4 {[%emt 0:01:39]} Qd7 {[%emt 0:11:35] [#]} 12. Nc5 $146 {[%emt 0:02:22]} ({Predecessor:} 12. a3 Be7 13. Nc5 Bxc5 14. dxc5 Rad8 15. Nf4 Nxf4 16. Bxf4 Qe7 17. Qa4 Qxc5 18. Bxc7 {0-1 (58) Gehrmann,R-Gasparian,T (2263) Bad Wiessee 1999}) 12... Bxc5 {[%emt 0:00:57]} 13. dxc5 {[%emt 0:00:06]} Rad8 {[%emt 0:02:50]} 14. Nf4 {[%emt 0:04:03] Against Bh3} Nxf4 {[%emt 0:03:14]} 15. Bxf4 {[%emt 0:00:10]} Qe7 {[%emt 0:02:11]} (15... Qc8 $5 {[%cal Rd8d1]} 16. Qa4 Rd4 $11) 16. Qc1 {[%emt 0:02:55]} Nb4 {[%emt 0:03:12]} 17. a3 {[%emt 0:16:21]} ({Don't play} 17. Bxb7 c6 18. Bd6 (18. a3 $2 Nd3 $19) 18... Qxb7 $19) 17... Nd3 {[%emt 0:03:07][%csl LRc1,LRc5]} 18. Qe3 {[%emt 0:00:07]} Nxb2 {[%emt 0:05:33]} 19. Bxb7 {[%emt 0:03:05]} Nc4 {[%emt 0:04:33]} 20. Qc3 {[%emt 0:01:31]} Qxc5 {[%emt 0:02:34]} 21. Rfc1 {[%emt 0:03:54]} (21. Ba6 $11 Qc6 22. Bxc4 Qxc4 23. Qxc4 Bxc4 24. Rfc1) 21... g5 $1 $17 {[%emt 0:08:07]} 22. Be3 {[%emt 0:01:16] [#]} Qf5 {[%emt 0:00:24]} 23. Rd1 {[%emt 0:02:33] Prevents Rd3.} c5 {[%emt 0:03:00]} ({Much worse is} 23... Nxe3 $6 24. Qxe3 Kg7 25. Qxa7 $11) 24. a4 {[%emt 0:03:57]} Rxd1+ {[%emt 0:06:30]} 25. Rxd1 {[%emt 0:00:07]} Rb8 $1 {[%emt 0:00:04]} 26. Bg2 {[%emt 0:09:35]} Nxe3 {[%emt 0:05:19]} 27. Qxe3 {[%emt 0:00:07]} Rb1 {[%emt 0:00:40]} 28. Rxb1 {[%emt 0:02:15]} Qxb1+ {[%emt 0:00:04][%mdl 4096] Endgame KQB-KQB} 29. Bf1 {[%emt 0:00:05]} h6 {[%emt 0:01:59]} 30. Qxc5 {[%emt 0:01:17]} Bh3 {[%emt 0:00:15][%csl Gh3][%cal Rb1f1]} 31. Qc4 {[%emt 0:01:33] [#]} (31. Qb5 $142 Qa1 32. a5) 31... a5 $1 {[%emt 0:01:44]} 32. Qd3 {[%emt 0:04:08]} Qa1 {[%emt 0:00:17]} 33. f4 $2 {[%emt 0:00:36][%mdl 8192]} (33. Qd8+ $17 Kg7 34. Qd3) 33... gxf4 $19 {[%emt 0:08:33]} 34. gxf4 {[%emt 0:00:09]} (34. Qf3 $142 Bxf1 35. Qxf1 Qxa4 36. Qf3) 34... Bxf1 {[%emt 0:00:03]} 35. Qxf1 {[%emt 0:00:07]} Qxa4 {[%emt 0:00:09] White must now prevent ...Qd4+. KQ-KQ} 36. Qf3 {[%emt 0:01:09]} Qd4+ {[%emt 0:01:01]} 37. Kf1 {[%emt 0:00:13]} a4 {[%emt 0:00:10]} 38. f5 {[%emt 0:04:03]} Kg7 {[%emt 0:00:40]} 39. Kg2 {[%emt 0:02:16]} Kf6 {[%emt 0:04:14] Threatens to win with ...Qb2+.} 40. Qc6+ {[%emt 0:01:24]} Kg5 {[%emt 0:02:04]} 41. f6 {[%emt 0:02:37]} (41. Qb7 $142 Kf6 42. Qc6+ Kxf5 43. Qf3+ Ke5 44. Qg3+ Kd5 45. Qb8) 41... a3 $2 {[%emt 0:01:34]} (41... Qg4+ $19 {has better winning chances.} 42. Kh1 Qd1+ 43. Kg2 Qe2+ 44. Kg1 Qe3+ 45. Kg2 a3 46. h4+ Kg6) 42. Qc1+ $17 {[%emt 0:00:15]} Kxf6 {[%emt 0:00:31]} 43. Qxa3 {[%emt 0:00:09]} Qe4+ {[%emt 0:00:36]} 44. Kf2 {[%emt 0:00:49]} Kg5 {[%emt 0:00:20]} 45. Qf8 {[%emt 0:00:50]} Qf4+ {[%emt 0:00:36]} 46. Kg2 {[%emt 0:00:18]} Kh4 {[%emt 0:00:20]} 47. Qa3 {[%emt 0:01:13]} f5 {[%emt 0:01:02]} 48. Qh3+ {[%emt 0:00:28]} Kg5 {[%emt 0:00:02] ( -> ...Qg4+)} 49. Qa3 {[%emt 0:00:27]} Qe4+ {[%emt 0:00:37]} 50. Kf2 {[%emt 0:00:33]} f4 {[%emt 0:01:25]} 51. Qc3 {[%emt 0:01:08] Prevents Qd4+. The position is equal.} h5 {[%emt 0:00:30]} 52. Qh3 {[%emt 0:01:31]} Qc2+ {[%emt 0:00:40]} 53. Kg1 {[%emt 0:00:34]} Qf5 {[%emt 0:00:26]} (53... Qd1+ 54. Qf1 Qd4+ 55. Qf2 $17) 54. Qa3 {[%emt 0:00:23]} Kh4 {[%emt 0:00:22]} 55. Qc3 {[%emt 0:01:03]} Kg4 {[%emt 0:01:36]} 56. Kf2 {[%emt 0:00:19]} Qe4 {[%emt 0:00:33]} 57. Qb3 {[%emt 0:01:17]} Qd4+ {[%emt 0:01:25]} 58. Ke2 {[%emt 0:00:14]} Qe4+ {[%emt 0:02:06]} 59. Kf2 {[%emt 0:00:06]} Qc6 {[%emt 0:02:56]} 60. Qd3 {[%emt 0:00:49]} h4 {[%emt 0:00:53]} 61. h3+ {[%emt 0:00:36]} Kg5 {[%emt 0:00:05]} 62. Qb3 {[%emt 0:00:29]} Kf5 {[%emt 0:01:34]} 63. Qf7+ {[%emt 0:00:23]} Qf6 {[%emt 0:00:18]} 64. Qd5+ {[%emt 0:00:24]} Qe5 {[%emt 0:00:48] And White is the lucky defender.  Weighted Error Value: White=0.34/Black=0.16 (very precise)} 1/2-1/2

[Event "Kvika Banki League Iceland 2022-23"]
[Site "Reykjavik"]
[Date "2022.10.14"]
[Round "2.13"]
[White "Jakubiec, Artur"]
[Black "Domalchuk-Jonasson, Aleksandr"]
[Result "1-0"]
[ECO "C11"]
[WhiteElo "2435"]
[BlackElo "2300"]
[Annotator "TA"]
[PlyCount "93"]
[EventDate "2022.10.13"]
[EventType "team-tourn"]
[EventCountry "ISL"]
[SourceTitle "playchess.com"]
[Source "ChessBase"]
[SourceQuality "1"]
[TimeControl "5400+30"]

{[%evp 16,93,13,6,26,19,15,1,0,0,0,6,-10,-17,0,0,4,0,0,6,15,16,58,49,52,0,0,-16,66,75,84,84,84,83,83,79,160,164,171,163,164,161,150,109,157,0,97,33,80,33,33,33,33,32,32,20,363,346,762,699,636,218,881,105,406,122,1036,927,999,943,29968,29965,29977,29978,29978,29979,29978,29978,29978,331]} 1. e4 {[%emt 0:00:19][%cal Be2e4,Be4e5][%mdl 32]} e6 {[%emt 0:00:23]} 2. d4 {[%emt 0:02:18]} d5 {[%emt 0:00:08]} 3. Nc3 {[%emt 0:00:28]} Nf6 {[%emt 0:00:47]} 4. e5 {[%emt 0:00:38]} Nfd7 {[%emt 0:00:09]} 5. f4 {[%emt 0:01:30]} c5 {[%emt 0:00:17]} 6. Nf3 {[%emt 0:00:05]} Nc6 {[%emt 0:00:17]} 7. Be3 {[%emt 0:00:32]} a6 {[%emt 0:01:14]} 8. Qd2 {[%emt 0:00:50]} Be7 {[%emt 0:00:40]} 9. dxc5 {[%emt 0:06:33]} Bxc5 {[%emt 0:08:10] C11: French: Classical System: 4 e5 and 4 Bg5 dxe4.} 10. Bxc5 {[%emt 0:11:48]} Nxc5 {[%emt 0:00:05]} 11. O-O-O {[%emt 0:03:17]} b5 {[%emt 0:02:15] The position is equal.} 12. Nd4 {[%emt 0:00:31]} Qb6 {[%emt 0:05:42]} 13. Nxc6 {[%emt 0:02:18]} Qxc6 {[%emt 0:00:05]} 14. Qd4 {[%emt 0:00:20]} Bb7 {[%emt 0:06:05] [#]} 15. h4 $146 {[%emt 0:04:12]} ({Predecessor:} 15. g4 O-O-O 16. Bg2 Kb8 17. Kb1 Rc8 18. Rd2 Rc7 19. Rhd1 a5 20. a3 Ba6 21. h3 {½-½ (137) Fedoseev,V (2188)-Smirnov,A (2403) St Petersburg 2007}) 15... h5 {[%emt 0:08:57]} 16. Rh3 {[%emt 0:01:28]} Rc8 $1 {[%emt 0:05:36]} 17. Rd2 {[%emt 0:08:05]} g6 {[%emt 0:07:09]} (17... Ke7 {seems wilder.} 18. Be2 g6 19. a3 Qb6) 18. Be2 {[%emt 0:06:59]} (18. b4 {is more complex.} Ne4 19. Nxe4 dxe4 20. Qd6) 18... Qb6 {[%emt 0:02:18]} 19. b4 {[%emt 0:02:19]} Nd7 {[%emt 0:01:36] [#]} 20. a4 {[%emt 0:01:40]} (20. Ne4 $1 $14 Rc7 (20... Ke7 21. Qxb6) 21. Qxb6 Nxb6 22. Nc5) 20... bxa4 $11 {[%emt 0:04:28]} 21. Ne4 {[%emt 0:03:52]} Qxd4 {[%emt 0:22:44]} (21... dxe4 22. Qxd7+ Kf8 23. Qd6+ Qxd6 24. Rxd6 $11) (21... Ke7 $11 22. Qxb6 (22. Nd6 Rc7 $15) 22... Nxb6) 22. Nd6+ $14 {[%emt 0:02:11]} Kf8 {[%emt 0:00:04][%cal Rd4a1]} 23. Rxd4 {[%emt 0:00:09] Chess con chili. Active counter play!} Rc7 {[%emt 0:00:26]} 24. Rdd3 {[%emt 0:05:50][%cal Bd4d3,Bd3c3,Bc3c4][%mdl 32] aiming for Rc3.} Bc6 {[%emt 0:05:08]} 25. Rc3 {[%emt 0:00:27]} Ke7 {[%emt 0:06:25]} (25... d4 $142 26. Rc4 Nb6) 26. Bxa6 $16 {[%emt 0:02:57] Strongly threatening Bb5.} d4 {[%emt 0:00:55]} 27. Rc4 {[%emt 0:02:21] Black must now prevent Bb5.} Nb6 {[%emt 0:01:06]} 28. Rxd4 {[%emt 0:03:17] Hoping for Rc3.} Bxg2 {[%emt 0:02:51]} 29. Rg3 {[%emt 0:00:47]} Ra8 {[%emt 0:00:26]} (29... Bd5 $142) 30. b5 $2 {[%emt 0:02:56]} ({White should try} 30. Rxg2 $16 Rxa6 31. b5) 30... Bh1 {[%emt 0:02:15]} (30... Bd5 $11 {remains equal.}) 31. Kb2 {[%emt 0:01:44]} (31. c4 $16) 31... Bd5 $14 {[%emt 0:02:00] [#]} 32. c4 {[%emt 0:14:37]} (32. c3 $1 $16) 32... Nxc4+ {[%emt 0:01:27]} 33. Nxc4 {[%emt 0:00:11]} Rxc4 {[%emt 0:00:07]} (33... Bxc4 $2 34. Rc3 (34. b6 Rc6 $16) 34... f6 35. Rcxc4 $18) 34. Rxc4 {[%emt 0:00:07]} Bxc4 {[%emt 0:00:01][%mdl 4096] Endgame KRB-KRB} 35. Rc3 {[%emt 0:01:01]} Bb3 {[%emt 0:05:10][%mdl 8192]} (35... Be2 $11 {and Black is okay.}) 36. Rc7+ $18 {[%emt 0:02:40]} Ke8 $2 {[%emt 0:00:15]} (36... Kf8 37. Ka3 Rb8) 37. Ka3 {[%emt 0:01:39]} Rb8 {[%emt 0:00:35]} 38. Bb7 $2 {[%emt 0:00:40]} (38. Kb4 {Ra7 is the strong threat.} Kf8 39. Bb7) 38... Kf8 $2 {[%emt 0:00:39]} (38... Bd5 39. Ba6 (39. Bxd5 exd5 40. Kxa4 d4 $16) 39... Bg2 40. Kxa4 Rd8) 39. Bc6 $2 {[%emt 0:02:55]} (39. Rc8+ $18 {and the rest is easy.} Rxc8 40. Bxc8) 39... Bd1 $2 {[%emt 0:00:23][%mdl 8192]} (39... Bc4 $16) 40. Kb4 $2 {[%emt 0:00:23]} (40. Rb7 $18 {is the precise move to win.} Rc8 41. Ra7) 40... Bb3 $2 {[%emt 0:00:29][%mdl 8192]} (40... Be2 $16 41. Ra7 (41. Kxa4 Bxb5+ 42. Bxb5 Ra8+ 43. Kb4 Ra2 $16) 41... Bxb5 42. Bxb5 Rc8) 41. Ra7 {[%emt 0:00:41]} Bd5 {[%emt 0:00:33]} 42. Kc5 {[%emt 0:01:48]} Bxc6 {[%emt 0:00:37]} 43. bxc6 {[%emt 0:00:19] White mates.} Rb1 {[%emt 0:00:22]} 44. Ra8+ {[%emt 0:00:58]} Ke7 {[%emt 0:00:02]} 45. c7 {[%emt 0:00:29]} Rc1+ {[%emt 0:00:08]} 46. Kb6 {[%emt 0:00:06]} Kd7 {[%emt 0:00:57]} 47. Rd8+ {[%emt 0:00:07] Weighted Error Value: White=0.46/Black=0.63} 1-0

[Event "Kvika Banki League Iceland 2022-23"]
[Site "Reykjavik"]
[Date "2022.10.14"]
[Round "2.14"]
[White "Mai, Alexander Oliver"]
[Black "Gunnarsson, Jon Viktor"]
[Result "0-1"]
[ECO "B52"]
[WhiteElo "2183"]
[BlackElo "2447"]
[Annotator "TA"]
[PlyCount "134"]
[EventDate "2022.10.13"]
[EventType "team-tourn"]
[EventCountry "ISL"]
[SourceTitle "playchess.com"]
[Source "ChessBase"]
[SourceQuality "1"]
[TimeControl "5400+30"]

{[%evp 24,134,14,16,27,25,21,23,15,-3,0,0,4,0,0,-14,-9,-34,-33,-51,0,-27,-27,-29,0,0,0,0,11,0,6,0,0,-11,0,0,0,-8,-8,-15,-8,-14,-12,-33,-10,-20,-5,-8,-3,-18,-9,-14,-3,-3,0,-8,-3,-14,0,0,0,0,0,-29,-8,-26,0,-19,0,0,0,0,0,-93,-101,-208,-132,-132,-132,-145,-129,-102,-8,-677,-651,-585,-508,-966,-940,-895,-584,-724,-819,-931,-930,-914,-904,-843,-718,-1331,-1265,-1538,-1510,-7691,-7385,-7275,-7292,-6368,-6566,-6605,-6095,-5069,-4362]} 1. e4 {[%emt 0:00:03]} c5 {[%emt 0:00:08]} 2. Nf3 {[%emt 0:00:05]} d6 {[%emt 0:00:09]} 3. Bb5+ {[%emt 0:00:42]} Bd7 {[%emt 0:00:08]} 4. Bxd7+ {[%emt 0:00:10]} Qxd7 {[%emt 0:00:12]} 5. c4 {[%emt 0:00:21]} Nf6 {[%emt 0:01:14]} 6. Nc3 {[%emt 0:00:09]} Nc6 {[%emt 0:03:14]} 7. d4 {[%emt 0:00:27]} cxd4 {[%emt 0:02:10]} 8. Nxd4 {[%emt 0:00:10]} e6 {[%emt 0:00:35]} 9. O-O {[%emt 0:06:23]} Be7 {[%emt 0:01:56]} 10. b3 {[%emt 0:05:29]} O-O {[%emt 0:02:22]} 11. Bb2 {[%emt 0:06:38]} a6 {[%emt 0:07:47]} 12. Nxc6 {[%emt 0:02:03]} Qxc6 {[%emt 0:02:13]} 13. Qe2 {[%emt 0:03:33]} Rfe8 {[%emt 0:13:26] B52: Sicilian: Moscow Variation with 3...Bd7.} 14. Rac1 {[%emt 0:02:29] [#]} Rac8 $146 {[%emt 0:01:34]} ({Predecessor:} 14... Nd7 15. Rfd1 Rac8 16. g3 Nc5 17. f3 Bf6 18. Rc2 Be5 19. Kg2 Nd7 20. Rcd2 Nc5 21. Nb1 {½-½ (40) Steinberg,N (2542)-Smirin,I (2607) Israel 2020}) 15. Kh1 {[%emt 0:05:07]} Nd7 {[%emt 0:07:13] White has an edge.} 16. f4 {[%emt 0:10:42]} Bf8 {[%emt 0:04:03]} 17. Rf3 {[%emt 0:06:40]} g6 {[%emt 0:06:10]} 18. Rd1 {[%emt 0:09:28]} Nc5 {[%emt 0:00:37]} 19. Re1 {[%emt 0:05:15]} Bg7 {[%emt 0:03:52][%cal Od6d5]} 20. Nd1 {[%emt 0:03:19]} Bxb2 {[%emt 0:09:14]} 21. Nxb2 {[%emt 0:00:14]} b5 {[%emt 0:00:42]} ({Black should play} 21... f5 $15 22. e5 dxe5 23. Qxe5 Ne4) 22. cxb5 {[%emt 0:03:16]} axb5 {[%emt 0:00:24][%cal Oc5e4] ...Nxe4! is the strong threat.} 23. Nd3 {[%emt 0:02:50]} Red8 {[%emt 0:10:37]} 24. h3 {[%emt 0:02:00]} (24. f5 {with more complications.} exf5 25. exf5 Re8 26. Re3) 24... Nxd3 {[%emt 0:02:50]} 25. Rxd3 {[%emt 0:00:55]} Qc5 {[%emt 0:01:00]} 26. Qd2 {[%emt 0:03:29]} Rc6 {[%emt 0:00:51]} 27. Rd4 {[%emt 0:02:38]} Ra8 {[%emt 0:01:08]} 28. Rd1 {[%emt 0:01:12]} Raa6 {[%emt 0:00:22]} 29. a4 {[%emt 0:02:55]} bxa4 {[%emt 0:01:19]} 30. bxa4 {[%emt 0:00:55]} Qc2 {[%emt 0:06:27]} (30... Kg7 {keeps more tension.} 31. f5 exf5 32. Rd5 Qc3) 31. Kh2 {[%emt 0:11:33]} Qxd2 {[%emt 0:02:55]} 32. R1xd2 $11 {[%emt 0:00:01][%mdl 4096] Endgame KRR-KRR} Kg7 {[%emt 0:00:42]} 33. R2d3 {[%emt 0:02:02]} h6 {[%emt 0:00:36]} (33... h5 $5 {[%cal Re6e5]}) 34. h4 {[%emt 0:00:28]} Ra5 {[%emt 0:03:05]} 35. Ra3 {[%emt 0:00:48]} Kf6 {[%emt 0:00:18]} 36. Rad3 {[%emt 0:01:47]} Ke7 {[%emt 0:02:02]} 37. Rb3 {[%emt 0:00:20]} Ra7 {[%emt 0:00:12]} 38. Rdb4 {[%emt 0:00:33]} Rca6 {[%emt 0:01:22]} 39. Ra3 {[%emt 0:01:45]} Ra5 {[%emt 0:00:16]} 40. Ra2 {[%emt 0:00:38]} f5 {[%emt 0:00:10]} 41. Kg3 {[%emt 0:00:31]} fxe4 {[%emt 0:01:30]} 42. Rxe4 {[%emt 0:00:05]} d5 {[%emt 0:00:15]} 43. Rd4 {[%emt 0:00:18]} Rc7 {[%emt 0:00:46]} 44. Kf2 {[%emt 0:00:46]} Kd6 {[%emt 0:00:44]} 45. Ke3 {[%emt 0:00:49]} Rc3+ {[%emt 0:00:25]} 46. Rd3 {[%emt 0:00:31]} Rc4 {[%emt 0:00:04]} 47. Rd4 {[%emt 0:00:10]} Rc1 {[%emt 0:01:05]} 48. Kd3 {[%emt 0:01:05]} (48. Rb4 $11) 48... Kc5 $17 {[%emt 0:00:08] Black is more active.} 49. Rd2 {[%emt 0:00:28] Prevents Rd1.} (49. Ke3 $17 {was the only defense.}) 49... h5 {[%emt 0:01:27] aiming for ...Rc4.} 50. Ke3 {[%emt 0:00:16]} Rc4 {[%emt 0:01:04]} 51. Rxc4+ {[%emt 0:00:41]} dxc4 {[%emt 0:00:04] KR-KR} 52. Ra2 {[%emt 0:00:46] [#]} Kb4 {[%emt 0:00:04]} (52... c3 $1 $17 53. Kd3 Kb4) 53. Kd2 $2 {[%emt 0:00:21][%mdl 8192] Now White is beyond hope.} (53. Rb2+ $11 Kc5 54. Rb8) 53... Rxa4 $19 {[%emt 0:01:38] Black is clearly winning.} 54. Rb2+ {[%emt 0:00:08]} Kc5 {[%emt 0:00:03]} 55. Rb8 {[%emt 0:00:41]} (55. Ke2 $142 Kd4 56. Kd1) 55... Ra2+ {[%emt 0:00:14]} 56. Kc3 {[%emt 0:00:01]} Ra3+ {[%emt 0:00:09]} 57. Kc2 {[%emt 0:00:15]} Rg3 {[%emt 0:00:04]} 58. Re8 {[%emt 0:01:21]} Rxg2+ {[%emt 0:00:06]} 59. Kc3 {[%emt 0:00:00]} Rg3+ {[%emt 0:00:07]} 60. Kc2 {[%emt 0:00:05]} Kd5 {[%emt 0:00:13]} 61. Rd8+ {[%emt 0:00:20]} Ke4 {[%emt 0:00:15]} 62. Re8 {[%emt 0:00:13]} Kxf4 {[%emt 0:01:08]} 63. Rxe6 {[%emt 0:00:01]} Rg4 {[%emt 0:00:32]} 64. Kd2 {[%emt 0:00:29]} Kg3 {[%emt 0:00:12]} 65. Ke3 {[%emt 0:00:06]} Kxh4 {[%emt 0:00:08]} 66. Kf3 {[%emt 0:00:07]} g5 {[%emt 0:00:31]} 67. Re1 {[%emt 0:00:07]} Rf4+ {[%emt 0:00:19] Weighted Error Value: White=0.44/Black=0.16 (very precise)} 0-1